Cogmind - Beta 16.1 @@@ ROGUE MODE // 2026.02.08 @ 20:13:35 Player: JuustuToug Result: Destroyed by Combat Programmer with EMDS Performance ------------- Evolutions (9) 4500 Regions Visited (25) 5000 Robots Destroyed (362) 1810 Value Destroyed (18812) 18812 Prototype IDs (48) 960 Alien Tech Used (0) 0 Bonus (10063) 10063 TOTAL SCORE: 41145 Bonus ------- High Alert Combat Kills 2518 Follower Combat Kills 2581 Entered Garrisons 800 Used RIF Installer 2000 Aligned with FarCom 300 A7 Reached Mainframe 300 Met R17 at Cetus 500 Met R17 at Research 2000 Friendly Fire -936 Cogmind --------- Core Integrity 0/1600 Matter 150/300 Energy 52/100 System Corruption 44% Temperature Cool (6) Movement Hovering (40) Location -1/Command Parts ------- > --- POWER (3) -------- (None) > --- PROPULSION (6) --- Linear Gravjet > --- UTILITY (14) ----- Relay Coupler [Proto] (2) > --- WEAPON (2) ------- (None) > --- INVENTORY (5) ---- Advanced Coolant Injector Nova Cannon Nova Cannon Gamma Bomb Array Micro-nuke Launcher Peak State ------------ > --- POWER ------------ Reinforced Antimatter Reactor Light Quantum Reactor Light Quantum Reactor > --- PROPULSION ------- Improved Heavy Siege Treads Centrium Heavy Treads Centrium Heavy Treads > --- UTILITY ---------- Advanced Power Amplifier Advanced Heat Sink Advanced Heat Sink Advanced Cooling System Advanced Cooling System High-capacity Storage Unit Advanced Target Analyzer Quantum Capacitor Improved Transmission Jammer Centrium Heavy Armor Plating Improved Hacking Suite Improved System Shield > --- WEAPON ----------- Enhanced Nova Cannon Advanced Remote Datajack > --- INVENTORY -------- Light Quantum Reactor Light Quantum Reactor Armored Heavy Treads Armored Heavy Treads Centrium Heavy Armor Plating Advanced Point Defense System Relay Coupler [Proto] Relay Coupler [Proto] High-powered Tractor Beam Cooled Proton Cannon Heavy Neutron Cannon Cooled Phase Cannon Nova Cannon Nova Cannon Nova Cannon Gamma Bomb Array Fusion Bomb Launcher [Rating: 195] Favorites ----------- Power Light Quantum Reactor Engine Improved Ion Engine Power Core Neutrino Core Reactor Light Quantum Reactor Propulsion Light Treads Treads Light Treads Leg Experimental Myomer Leg Wheel Armored Huge Wheel Hover Unit Linear Gravjet Utility High-capacity Storage Unit Device Advanced Cooling System Storage High-capacity Storage Unit Processor Advanced Target Analyzer Hackware Relay Coupler [NC] Protection Centrium Medium Armor Plating Weapon Heavy Plasma Cannon Energy Gun Improved Medium Laser Energy Cannon Heavy Plasma Cannon Ballistic Gun Assault Rifle Ballistic Cannon Compact Mass Driver Launcher Heavy Missile Launcher Special Weapon Advanced Remote Datajack Impact Weapon Power Maul Special Melee Weapon Datajack Build | -11 -10 -10 -9 -9 -9 -8 -8 -8 -7 -7 -7 -7 -6 -5 -5 -5 -5 -5 -5 -5 -4 -3 -2 -1 -1 ------- Run | Yrd Mat Min Mat Min Exi Min Mat Gar Fac Gar Fac Gar Fac Fac Was Fac Gar Ext Cet Arc Fac Res Res Acc Com Slots Evolved 18 | . . . 2 . . . 2 . 2 . . . 2 2 . . . . . . 2 2 2 2 . Power 2 | . . . . . . . . . . . . . . . . . . . . . . 1 1 . . Propulsion 4 | . . . 1 . . . 1 . . . . . . 1 . . . . . . 1 . . . . Utility 12 | . . . 1 . . . 1 . 2 . . . 2 1 . . . . . . 1 1 1 2 . Weapon . | . . . . . . . . . . . . . . . . . . . . . . . . . . Parts Attached 274 | 7 6 2 22 8 1 2 15 15 6 23 4 7 39 9 11 5 13 3 10 4 10 12 3 23 14 Power 34 | 1 2 1 2 1 . . 1 2 . 2 . 2 6 1 1 . 2 . 1 . . 1 1 4 3 Engine 17 | 1 2 1 2 1 . . 1 2 . 2 . . 5 . . . . . . . . . . . . Core 3 | . . . . . . . . . . . . . 1 1 . . 1 . . . . . . . . Reactor 14 | . . . . . . . . . . . . 2 . . 1 . 1 . 1 . . 1 1 4 3 Propulsion 69 | 2 . . 8 3 . . 4 4 2 6 1 . 9 4 6 . 4 2 4 . 1 1 . 5 3 Treads 58 | 2 . . 8 3 . . 4 4 2 5 . . 1 4 6 . 4 2 4 . 1 1 . 5 2 Leg 6 | . . . . . . . . . . 1 . . 5 . . . . . . . . . . . . Wheel 4 | . . . . . . . . . . . 1 . 3 . . . . . . . . . . . . Hover 1 | . . . . . . . . . . . . . . . . . . . . . . . . . 1 Flight . | . . . . . . . . . . . . . . . . . . . . . . . . . . Utility 113 | 2 2 . 3 3 1 . 7 6 3 10 1 4 16 3 4 3 5 1 5 3 8 4 2 11 6 Device 52 | 1 1 . 2 2 . . 2 3 . 5 1 . 8 2 . 2 1 1 1 . 5 3 1 8 3 Storage 9 | 1 1 . 1 . 1 . 1 . . . . . 2 . . 1 . . . . 1 . . . . Processor 4 | . . . . . . . . . . 1 . . 2 . . . . . . . . . . 1 . Hackware 24 | . . . . . . . 1 2 . 3 . 3 4 . . . 2 . . 3 1 1 1 1 2 Protection 24 | . . . . 1 . . 3 1 3 1 . 1 . 1 4 . 2 . 4 . 1 . . 1 1 Artifact . | . . . . . . . . . . . . . . . . . . . . . . . . . . Weapon 58 | 2 2 1 9 1 . 2 3 3 1 5 2 1 8 1 . 2 2 . . 1 1 6 . 3 2 Energy Gun 7 | . 1 . 2 1 . 1 . . . 1 1 . . . . . . . . . . . . . . Energy Cannon 24 | . . . 2 . . . 1 1 . 1 . 1 6 1 . . 2 . . 1 1 4 . 2 1 Ballistic Gun 14 | 2 1 1 3 . . 1 . 1 1 2 1 . . . . 1 . . . . . . . . . Ballistic Cannon 1 | . . . . . . . . . . . . . 1 . . . . . . . . . . . . Launcher 7 | . . . 2 . . . . 1 . 1 . . . . . . . . . . . 1 . 1 1 Special Weapon 3 | . . . . . . . . . . . . . 1 . . 1 . . . . . 1 . . . Impact Weapon 1 | . . . . . . . 1 . . . . . . . . . . . . . . . . . . Slashing Weapon . | . . . . . . . . . . . . . . . . . . . . . . . . . . Piercing Weapon . | . . . . . . . . . . . . . . . . . . . . . . . . . . Special Melee Weapon 1 | . . . . . . . 1 . . . . . . . . . . . . . . . . . . Unidentified Prototypes 21 | . . . 2 1 . . . . . 1 2 . 7 . . 1 . . 2 . . 4 . 1 . Corrupted Parts 5 | . . . . . . . . . . . . . . . . . . . 4 . . . . . 1 System Corruption 38 | . . . . . . . . . . . . . . . . . . . 31 . . . . . 7 Parts Lost 87 | . . . . 8 . 1 . 9 1 2 2 1 20 1 . . 1 1 . . 2 1 1 5 31 Power 12 | . . . . 1 . . . 1 . . 1 . 2 . . . . . . . . . . 1 6 Propulsion 23 | . . . . 3 . . . 4 1 2 . . 5 . . . . . . . . . . 2 6 Utility 37 | . . . . 3 . . . 3 . . . 1 9 . . . 1 1 . . 1 . 1 . 17 Weapon 15 | . . . . 1 . 1 . 1 . . 1 . 4 1 . . . . . . 1 1 . 2 2 Highest Loss Streak 26 | . . . . 8 . 1 . 7 1 1 1 1 13 1 . . 1 1 . . 1 1 1 2 26 To Critical Strikes 2 | . . . . . . . . . . . . . 2 . . . . . . . . . . . . Average Backups 17 | 1 8 14 19 19 20 19 19 19 19 19 18 18 17 17 16 15 16 17 17 16 17 17 17 17 16 Power 1 | . 1 1 1 . . . 1 1 1 1 1 1 . 1 1 1 1 1 1 1 1 . 1 1 1 Propulsion 2 | . . 1 4 5 5 5 4 4 3 2 3 3 2 . 1 2 2 2 3 3 2 2 1 1 1 Utility 5 | . 2 6 5 5 7 7 4 4 4 5 6 5 4 4 5 4 5 5 6 7 7 8 5 6 7 Weapon 7 | . 4 5 7 6 7 6 7 8 9 8 8 8 9 10 7 7 7 7 6 4 5 6 7 7 5 Tool/Special . | . . . . . . . . . . . . . . . . . . . . . . . . . . Unused Backups 88 | . 7 2 13 . . . 5 6 2 8 . 8 9 3 1 . 2 . 2 2 3 6 3 2 4 Power 14 | . 3 . 1 . . . 1 1 1 3 . 1 1 . . . 1 . 1 . . . . . . Propulsion 9 | . . . 3 . . . . . . 2 . . 2 . . . . . . . 1 . . 1 . Utility 24 | . . 1 2 . . . 1 3 . 1 . 1 1 2 1 . 1 . . 2 2 1 1 1 3 Weapon 38 | . 4 1 7 . . . 3 1 1 2 . 6 5 1 . . . . 1 . . 4 1 . 1 Tool/Special 3 | . . . . . . . . 1 . . . . . . . . . . . . . 1 1 . . Average Slot Usage (%) 87 | . 100 100 99 97 79 100 99 97 99 96 83 82 87 92 76 81 81 80 82 88 77 79 80 81 75 Engine 4 | . 14 14 11 10 11 11 9 9 7 7 6 3 2 . . . . . . . . . . . . Reactor 3 | . . . . . . . . . . . . 3 3 . . . 1 5 5 5 5 8 12 11 11 Treads 20 | . 28 28 33 32 33 33 35 36 30 24 10 7 3 15 18 17 16 17 17 17 14 14 12 13 14 Device 15 | . 14 14 21 16 11 11 9 10 7 7 7 7 15 8 11 16 14 9 6 11 12 19 20 27 26 Storage 7 | . 14 14 11 11 11 11 9 9 7 7 7 7 7 9 5 10 11 9 5 5 5 4 4 4 3 Hackware 11 | . . . . . . . . 10 15 16 23 21 21 27 13 11 13 17 17 19 19 17 14 10 10 Protection 6 | . . . . 4 11 11 16 2 14 12 7 6 3 . 6 5 5 6 15 14 9 4 6 5 3 Energy Gun 1 | . 4 14 2 4 1 11 3 . . 2 6 5 . . . . . . . . . . . . . Energy Cannon 6 | . . . 8 11 1 . 5 8 6 4 . 1 9 10 9 7 10 10 11 11 8 7 7 4 3 Ballistic Gun 4 | . 23 14 10 5 . 10 8 8 6 6 6 5 2 . . . . . . . . . . . . Peak Build Rating 195 | 7 9 9 26 26 20 20 36 36 35 65 65 65 98 88 105 101 102 99 123 120 142 155 174 195 191 Average Rating 83 | 5 7 9 22 22 14 20 24 28 32 39 60 59 77 82 92 99 99 93 105 118 137 150 168 184 164 On Entrance 69 | . 7 9 9 26 20 20 20 30 27 34 65 58 65 80 83 95 101 98 93 118 119 133 154 174 175 Avg Prop Armor Cover (%) 7 | . . . . . . . 5 . . 3 14 12 12 3 2 6 3 2 3 3 . . . 7 . Naked Turns . | . . . . . . . . . . . . . . . . . . . . . . . . . . Heaviest Build 155 | 15 32 32 57 59 59 58 63 60 66 69 61 76 88 97 122 117 112 126 126 112 107 126 153 155 146 Greatest Support 240 | 40 40 40 66 66 62 62 84 84 83 150 150 75 100 112 178 178 185 180 190 190 240 240 235 235 190 Greatest Overweight (x) 3 | . . . . . . . 1 . . 1 2 2 3 2 . 1 1 1 . . . . . 1 . Average Overweight (x) . | . . . . . . . . . . . . 1 1 . . . . . . . . . . . . Largest Inventory Capacity 20 | 8 15 15 20 20 20 20 20 20 20 20 20 20 20 20 20 20 20 20 20 20 20 20 20 20 20 Average Capacity 19 | 7 9 15 19 20 20 20 20 20 20 20 20 20 20 20 20 20 20 20 20 20 20 20 20 20 19 Most Carried 20 | 2 15 15 20 20 20 20 20 20 20 20 20 20 20 20 20 20 20 20 20 20 20 20 20 20 20 Average Carried 18 | 1 8 14 19 19 20 19 19 19 19 19 19 19 18 19 19 19 19 19 19 19 19 19 18 19 17 Final Capacity 20 | 8 15 15 20 20 20 20 20 20 20 20 20 20 20 20 20 20 20 20 20 20 20 20 20 20 5 Final Carried 20 | 2 15 14 20 20 20 20 20 20 20 20 20 20 20 20 20 20 20 20 20 20 20 20 20 20 5 Class Distribution -------------------- 45% | Scavenger-Mutant 27% | Bothacker-Mutant 25% | Mutant Dominant Class ---------------- Mutant | -10/Materials Mutant | -10/Mines Mutant | -9/Materials Mutant | -9/Mines Scavenger-Mutant | -9/Exiles Scavenger-Mutant | -8/Mines Scavenger-Mutant | -8/Materials Scavenger-Mutant | -8/Garrison Scavenger-Mutant | -7/Factory Bothacker-Mutant | -7/Garrison Bothacker-Mutant | -7/Factory Bothacker-Mutant | -7/Garrison Bothacker-Mutant | -6/Factory Bothacker-Mutant | -5/Factory Mutant | -5/Waste Mutant | -5/Factory Mutant | -5/Garrison Bothacker-Mutant | -5/Extension Bothacker-Mutant | -5/Cetus Bothacker-Mutant | -5/Archives Scavenger-Mutant | -4/Factory Scavenger-Mutant | -3/Research Scavenger-Mutant | -2/Research Scavenger-Mutant | -1/Access Scavenger-Mutant | -1/Command Resources | -11 -10 -10 -9 -9 -9 -8 -8 -8 -7 -7 -7 -7 -6 -5 -5 -5 -5 -5 -5 -5 -4 -3 -2 -1 -1 ----------- Run | Yrd Mat Min Mat Min Exi Min Mat Gar Fac Gar Fac Gar Fac Fac Was Fac Gar Ext Cet Arc Fac Res Res Acc Com Matter Collected 7769 | 300 405 131 654 240 . 53 270 716 74 792 69 591 798 110 222 117 210 213 185 99 391 188 192 462 287 Remotely . | . . . . . . . . . . . . . . . . . . . . . . . . . . Salvage Created 19644 | 123 841 90 1445 294 . 24 567 919 69 1348 158 591 1693 328 325 . 1515 800 154 564 1611 297 260 3653 1975 Parts 892 | 7 78 1 96 21 . 3 23 45 5 64 5 30 50 17 3 . 47 19 3 33 84 10 17 158 73 Haulers Intercepted 8 | . 2 . 5 . . . 1 . . . . . . . . . . . . . . . . . . Recyclers Shooed 13 | . 3 . 2 1 . . 1 . . . . . 3 1 . . . . . . 1 . . 1 . Parts Field Recycled . | . . . . . . . . . . . . . . . . . . . . . . . . . . Retrieved Matter . | . . . . . . . . . . . . . . . . . . . . . . . . . . Parts Self-Destructed . | . . . . . . . . . . . . . . . . . . . . . . . . . . Prevented . | . . . . . . . . . . . . . . . . . . . . . . . . . . Parts Restored . | . . . . . . . . . . . . . . . . . . . . . . . . . . Kills | -11 -10 -10 -9 -9 -9 -8 -8 -8 -7 -7 -7 -7 -6 -5 -5 -5 -5 -5 -5 -5 -4 -3 -2 -1 -1 ------- Run | Yrd Mat Min Mat Min Exi Min Mat Gar Fac Gar Fac Gar Fac Fac Was Fac Gar Ext Cet Arc Fac Res Res Acc Com Combat Hostiles Destroyed 307 | . 21 2 29 21 . 2 7 25 1 21 2 17 20 9 . . 7 9 2 3 24 6 2 51 26 Melee 1 | . . . . . . . . . . . . . 1 . . . . . . . . . . . . Guns 61 | . 21 2 13 . . 2 3 8 1 4 2 5 . . . . . . . . . . . . . Cannons 136 | . . . 11 11 . . 2 9 . 6 . . 10 2 . . 5 7 . . 21 4 2 30 16 AOE 75 | . . . 5 10 . . 2 8 . 11 . 12 7 6 . . . . . . . 2 . 7 5 Classes Destroyed 20 | 2 6 . 3 2 . . . 1 1 . 1 1 1 . . . . . . . . . . 1 1 Worker 10 | . . . 2 2 . . . . . . . . 3 . . . . . . . 2 . . . 1 Builder 4 | . 3 . 1 . . . . . . . . . . . . . . . . . . . . . . Tunneler 4 | 3 . . . 1 . . . . . . . . . . . . . . . . . . . . . Hauler 8 | . 2 . 5 . . . 1 . . . . . . . . . . . . . . . . . . Recycler 14 | 1 . . 2 . . . 2 . . . . . 5 . . . . 1 . . 1 . 1 1 . Carrier 1 | . . . . . . . . . . . . . . . . . . . . . . . . . 1 Operator 11 | . 1 . 1 . . . . . . . . . . . . . . . . 8 . . . . 1 Watcher 12 | . 1 . 3 . . . 2 . 1 . . . 1 . . . . 1 . . . 1 . 2 . Swarmer 67 | . 8 . 10 3 . 2 . 4 . 16 . 7 . 4 . . 1 . . . . 3 . 5 4 Grunt 101 | . 13 2 11 . . . 6 11 . 4 2 2 8 4 . . . 5 . . 3 2 . 19 9 Brawler 6 | . . . . . . . . . . . 1 . . . . . . 1 . . . . . 2 2 Duelist 6 | . . . 1 . . . . 2 . . . 1 . . . . . . . . . . . . 2 Protector 1 | . . . . . . . . . . . . . . . . . . . . . . . . 1 . Sentry 34 | . . . 7 1 . . 1 7 . 1 . 1 1 1 . . 2 . . 3 5 . . 4 . Demolisher 2 | . . . . 2 . . . . . . . . . . . . . . . . . . . . . Specialist 4 | . . . . . . . . . . . . 1 3 . . . . . . . . . . . . Hunter 22 | . . . . . . . . 1 . . . 2 6 . . . 1 2 . . 5 . . 5 . Programmer 46 | . . . . . . . . . 1 . . 3 2 . . . 3 1 . . 10 1 2 15 8 Heavy 2 | . . . . . . . . . . . . . 1 . . . . . . . 1 . . . . Cetus Guard 2 | . . . . . . . . . . . . . . . . . . . 2 . . . . . . Combat Programmer 1 | . . . . . . . . . . . . . . . . . . . . . . . . . 1 Assembled 15 | . . . . 15 . . . . . . . . . . . . . . . . . . . . . Thug 2 | . . . . . . . . . . . . . . . . . 2 . . . . . . . . Butcher 2 | . . . . . . . . . . . . . 1 . . . . 1 . . . . . . . Best Kill Streak 15 | 4 5 2 9 15 . 2 4 8 1 10 2 5 6 4 . . 3 3 1 3 3 2 2 14 5 Combat Bots Only 13 | . 5 2 7 13 . 2 3 8 1 10 2 5 4 4 . . 3 3 1 3 3 2 2 13 5 Max Kills in Single Turn 4 | 1 2 1 3 2 . 1 2 2 1 4 1 4 4 3 . . 1 1 1 1 1 2 1 4 4 Gunslinging . | . . . . . . . . . . . . . . . . . . . . . . . . . . Exploded 4 | . . . 2 2 . . 2 2 . 4 . 4 2 3 . . . . . . . 2 . 3 4 Melee 1 | . . . . . . . . . . . . . 1 . . . . . . . . . . . . Uniques/NPCs Destroyed . | . . . . . . . . . . . . . . . . . . . . . . . . . . Combat | -11 -10 -10 -9 -9 -9 -8 -8 -8 -7 -7 -7 -7 -6 -5 -5 -5 -5 -5 -5 -5 -4 -3 -2 -1 -1 -------- Run | Yrd Mat Min Mat Min Exi Min Mat Gar Fac Gar Fac Gar Fac Fac Was Fac Gar Ext Cet Arc Fac Res Res Acc Com Hostile Shots Fired 2030 | . 75 24 100 53 . 10 28 116 25 91 14 54 383 10 . 2 105 57 45 16 213 27 10 299 273 Missed 531 | . 21 7 25 7 . 2 9 29 11 29 4 11 109 3 . . 12 15 10 5 54 7 3 72 86 Intercepted 18 | . . . . . . . . . . . . . . . . . . . . . . . . . 18 Hits 1499 | . 54 17 75 46 . 8 19 87 14 62 10 43 274 7 . 2 93 42 35 11 159 20 7 227 187 Melee 22 | . . . . 4 . . . 11 . . . . 4 . . . . . . . . . . . 3 Projectile 1477 | . 54 17 75 42 . 8 19 76 14 62 10 43 270 7 . 2 93 42 35 11 159 20 7 227 184 AOE 49 | . . . . 15 . . . . 2 . . . . . . . . . . . 2 . . . 30 Critical Strikes 58 | . . . 1 . . . . 3 1 2 . 2 4 . . . 3 1 5 . 7 1 . 2 26 Part Disruptions 7 | . . . . 2 . . . . . . . . 3 . . . . . . . 1 . . . 1 Damage Taken 32326 | . 537 207 834 1130 . 61 376 1511 171 961 390 670 4742 143 . 52 1284 892 919 267 3683 464 168 5339 7525 Core 3434 | . 106 40 123 133 . 7 . 131 30 63 14 33 747 51 . . 38 30 35 . 173 64 . 128 1488 Absorbed by Shields 1048 | . . . . . . . . . . . . . 70 . . 20 412 234 83 95 53 . . . 81 Reduced by Siege Mode 1142 | . . . . . . . . . . . 14 20 97 . . . 96 35 49 11 373 . 38 324 85 Ignored by Resistances 120 | . . . . . . . . . . . . . . . . . 120 . . . . . . . . Regen/Repaired (Parts) 3780 | . . . . . . . . . . . 140 . . . 746 16 40 . . . 490 . 1047 1247 54 Core Remaining (%) 70 | 100 . 41 . . . 34 . 76 . . . 80 12 . . . . . . 84 84 95 100 . . Volleys Fired 1279 | 5 71 8 86 36 . 4 29 90 13 79 7 44 85 13 4 5 85 47 13 30 129 27 24 230 115 Largest 2 | 2 2 2 2 2 . 2 2 2 2 2 2 2 2 2 2 1 2 2 2 2 2 1 1 1 1 Hottest 200 | 40 70 70 91 124 . 124 91 93 96 96 89 100 200 180 180 90 180 180 180 180 195 113 113 120 120 Shots Fired 1898 | 10 142 16 170 59 . 8 56 145 26 137 12 80 145 22 8 5 150 75 28 59 148 27 24 231 115 Gun 589 | 10 142 16 107 21 . 7 33 56 13 92 12 72 8 . . . . . . . . . . . . Cannon 1183 | . . . 60 26 . 1 21 80 13 39 . . 121 18 8 5 145 56 28 59 145 25 21 219 93 Launcher 69 | . . . 3 12 . . 2 9 . 6 . 8 8 1 . . . . . . . 1 . 8 11 Special 57 | . . . . . . . . . . . . . 8 3 . . 5 19 . . 3 1 3 4 11 Kinetic 442 | 10 122 8 84 12 . . 27 56 13 59 7 36 8 . . . . . . . . . . . . Thermal 1310 | . 20 8 83 35 . 8 27 80 13 72 5 36 121 18 8 5 145 56 28 59 145 25 21 199 93 Explosive 57 | . . . 3 12 . . 2 9 . 6 . 8 8 1 . . . . . . . 1 . 5 2 Electromagnetic 32 | . . . . . . . . . . . . . . . . . . . . . . . . 23 9 Robot Hit Streak 29 | 6 10 6 18 11 . 3 27 14 22 29 5 26 13 23 8 . 19 28 15 14 28 5 10 20 28 Robot Miss Streak 5 | . 5 1 3 3 . 1 2 4 2 3 1 2 3 2 . . 2 2 1 3 2 5 1 3 2 Penetration Max 1 | . . . . . . . . . . . . 1 . . . . . . . . . . . . . Secondary Targets 3 | . 1 . . . . . . . . . 2 . . . . . . . . . . . . . . Max Gunslinging Chain 1 | . 1 . . . . . . . . . 1 . . . . . . . . . . . . . . Capacitor 444 | . . . . . . . . . . . . . . . . . . . . . 103 25 21 219 76 Shots Hit Robots 1287 | 6 82 11 114 30 . 5 41 86 25 91 14 63 101 12 7 . 106 59 23 40 104 12 16 150 89 Core Hits 681 | 4 46 4 52 33 . 2 23 43 6 62 7 33 53 11 1 . 45 17 6 17 44 9 4 95 64 Critical Kills 25 | . . . 1 . . . . 1 . . . . 1 1 1 . 6 3 1 2 1 . . 5 2 Critical Parts Destroyed 3 | . 1 . . . . . 1 . . . . . 1 . . . . . . . . . . . . Critical Strikes 38 | . 1 1 3 . . 1 1 1 1 4 . 1 2 1 1 . 6 3 1 2 1 . . 5 2 Burn 9 | . . 1 2 . . 1 . . . 4 . 1 . . . . . . . . . . . . . Meltdown 23 | . . . 1 . . . . . . . . . . 1 1 . 6 3 1 2 1 . . 5 2 Destroy 4 | . 1 . . . . . 1 1 1 . . . . . . . . . . . . . . . . Smash 2 | . . . . . . . . . . . . . 2 . . . . . . . . . . . . Melee Attacks 55 | . . . . . . . 3 6 3 4 5 22 12 . . . . . . . . . . . . Impact 29 | . . . . . . . 3 . 1 . . 13 12 . . . . . . . . . . . . Slashing . | . . . . . . . . . . . . . . . . . . . . . . . . . . Piercing . | . . . . . . . . . . . . . . . . . . . . . . . . . . Sneak Attacks 21 | . . . . . . . . 6 . 4 3 8 . . . . . . . . . . . . . Combat Hostiles . | . . . . . . . . . . . . . . . . . . . . . . . . . . Follow-up Attacks . | . . . . . . . . . . . . . . . . . . . . . . . . . . Damage Inflicted 46337 | 94 1061 143 2287 1176 . 88 1037 2357 482 2567 209 1825 4754 1010 223 2 3399 1542 736 1329 3689 743 619 9107 5858 Guns 6346 | 94 1059 143 1062 167 . 68 387 562 247 1350 209 880 118 . . . . . . . . . . . . Cannons 28436 | . . . 948 390 . 20 394 884 235 307 . . 2580 287 223 . 3392 1533 736 1329 3603 550 619 6386 4020 Explosions 10862 | . . . 210 610 . . 256 911 . 910 . 945 1590 723 . . . . . . . 179 . 2690 1838 Melee 323 | . . . . . . . . . . . . . 323 . . . . . . . . . . . . Ramming 370 | . 2 . 67 9 . . . . . . . . 143 . . 2 7 9 . . 86 14 . 31 . Kinetic 4624 | 94 908 56 859 78 . . 317 562 247 857 125 403 118 . . . . . . . . . . . . Thermal 30311 | . 151 87 1151 479 . 88 464 884 235 800 84 477 2708 717 223 . 3392 1533 736 1329 3603 550 619 5882 4119 Explosive 8364 | . . . 210 610 . . 256 911 . 910 . 945 1462 293 . . . . . . . 179 . 1789 799 Electromagnetic 2345 | . . . . . . . . . . . . . . . . . . . . . . . . 1405 940 Impact 323 | . . . . . . . . . . . . . 323 . . . . . . . . . . . . Slashing . | . . . . . . . . . . . . . . . . . . . . . . . . . . Piercing . | . . . . . . . . . . . . . . . . . . . . . . . . . . Highest Corruption 43 | . . . 1 1 1 1 . . . . . 2 4 . . . 1 1 32 32 15 . 1 5 43 Average Corruption 4 | . . . 1 1 1 1 . . . . . 2 3 . . . 1 1 10 32 11 . 1 2 8 Corruption Purged 5 | . . . . . . . . . . . . . . . . . . . . . . . . 5 . Corruption Blocked . | . . . . . . . . . . . . . . . . . . . . . . . . . . Effects 198 | . . . 18 4 3 3 . . . . . 15 12 . . . . 7 8 31 56 . 1 17 23 Message Errors 48 | . . . 6 1 . 1 . . . . . 4 1 . . . . 1 2 5 18 . 1 2 6 Matter Fused 44 | . . . 6 1 . 2 . . . . . 5 6 . . . . 1 1 7 8 . . 3 4 Heat Flow Errors 19 | . . . 1 . 1 . . . . . . 1 1 . . . . 1 1 1 6 . . 3 3 Energy Discharges 26 | . . . 3 . 1 . . . . . . 3 . . . . . 1 1 3 7 . . 3 4 Parts Rejected 3 | . . . . . . . . . . . . . . . . . . . . . 2 . . . 1 Parts Fused 3 | . . . . . . . . . . . . . . . . . . . . 2 . . . 1 . Data Loss (minor) 25 | . . . 1 1 . . . . . . . 1 2 . . . . 2 1 7 5 . . 2 3 Data Loss (major) 11 | . . . . 1 1 . . . . . . 1 1 . . . . . . 1 6 . . . . Misfires 10 | . . . 1 . . . . . . . . . 1 . . . . . 2 2 2 . . 2 . Alerts 1 | . . . . . . . . . . . . . . . . . . 1 . . . . . . . Misdirections 2 | . . . . . . . . . . . . . . . . . . . . . . . . . 2 Weapon Failures 6 | . . . . . . . . . . . . . . . . . . . . 3 2 . . 1 . Overload Shots 17 | . . . . . . . . . . . . . . . . . . . . . . . . . 17 Overflow Damage 878 | . . . 5 29 . . 29 19 10 49 . . 216 5 . . 9 8 6 28 19 53 61 247 85 Projectiles 567 | . . . 1 29 . . . 19 10 . . . 110 . . . 9 8 6 28 19 53 61 130 84 Explosions 220 | . . . . . . . 29 . . 49 . . 19 5 . . . . . . . . . 117 1 Melee 91 | . . . 4 . . . . . . . . . 87 . . . . . . . . . . . . Knockbacks 3 | . . . . . . . . . . . . . 2 . . . . . . . 1 . . . . Impact 3 | . . . . . . . . . . . . . 2 . . . . . . . 1 . . . . Kinetic . | . . . . . . . . . . . . . . . . . . . . . . . . . . Secondary . | . . . . . . . . . . . . . . . . . . . . . . . . . . Self-Inflicted Damage 758 | . . . . . . . . . . . . 47 292 19 . . . . . . 25 . . 267 108 Shots 18 | . . . . . . . . . . . . 1 4 1 . . . . . . 1 . . 6 5 Rammed 29 | . 1 . 10 3 . . . . . . . . 2 . . 1 1 1 . . 8 1 . 1 . Targets Rammed 37 | . 1 . 12 4 . . . . . . . . 7 . . 1 1 1 . . 8 1 . 1 . Kicked 5 | . . . . . . . . . . . . . 5 . . . . . . . . . . . . Crushed 3 | . . . 2 1 . . . . . . . . . . . . . . . . . . . . . Highest Temperature 345 | . 126 189 139 182 163 79 99 49 12 99 . 88 216 . 24 . 196 297 345 309 301 286 246 265 234 Average Temperature 66 | . 39 107 59 50 81 38 31 14 12 31 . 65 77 . 13 . 59 83 162 54 91 99 89 55 65 Received Heat Transfer 3554 | . 204 93 303 107 . . 171 333 24 360 90 36 366 9 . 12 206 173 76 24 159 97 . 576 135 Effects 3 | . . . . . . . . . . . . . 1 . . . . . . 2 . . . . . Energy Bleed 1 | . . . . . . . . . . . . . 1 . . . . . . . . . . . . Interference 2 | . . . . . . . . . . . . . . . . . . . . 2 . . . . . Siege Activations 44 | . . . . . . . . . . . 1 3 1 . . . 4 3 2 2 10 . 1 11 6 Total Turns 714 | . . . . . . . . . . . 8 35 21 . . . 73 34 34 105 141 . 13 184 66 Longest Duration 98 | . . . . . . . . . . . 8 24 21 . . . 29 20 19 98 40 . 13 41 28 Martial Activations . | . . . . . . . . . . . . . . . . . . . . . . . . . . Shielding Activations . | . . . . . . . . . . . . . . . . . . . . . . . . . . Robots Disrupted 1 | . . . . . . . . . . . . . . . . . . . . . . . . 1 . Combat Hostiles 1 | . . . . . . . . . . . . . . . . . . . . . . . . 1 . Robots Corrupted 14 | . . . . . . . . . . . . . 3 . . . . . . . . . . 8 3 Combat Hostiles 13 | . . . . . . . . . . . . . 2 . . . . . . . . . . 8 3 Parts Fried 31 | . . . . . . . . . . . . . 4 . . . . 2 . . . . . 18 7 Impact Corruptions 7 | . . . 1 . . . . . . . . . 5 . . . . . . . 1 . . . . Robots Melted 31 | . . . 1 . . . . . . . . . . 1 1 . 6 4 2 3 3 . . 6 4 Combat Hostiles 23 | . . . . . . . . . . . . . . 1 1 . 3 2 2 3 3 . . 6 2 Parts Melted 126 | . . . 4 1 . 3 . 4 . 4 . 1 2 2 . . 24 11 3 7 11 4 1 29 15 Heat Transferred 38150 | . 444 333 2331 888 . 259 851 1532 407 1924 185 1110 3340 700 350 . 4893 2300 1125 2050 4567 490 481 4884 2706 Parts Sabotaged . | . . . . . . . . . . . . . . . . . . . . . . . . . . Parts Stolen . | . . . . . . . . . . . . . . . . . . . . . . . . . . Parts Stripped . | . . . . . . . . . . . . . . . . . . . . . . . . . . Power Chain Reactions 2 | . . . . . . . . . . . . . 1 . . . . . . . . . . . 1 Alert | -11 -10 -10 -9 -9 -9 -8 -8 -8 -7 -7 -7 -7 -6 -5 -5 -5 -5 -5 -5 -5 -4 -3 -2 -1 -1 ------- Run | Yrd Mat Min Mat Min Exi Min Mat Gar Fac Gar Fac Gar Fac Fac Was Fac Gar Ext Cet Arc Fac Res Res Acc Com Maximum Alert Level 3 | . 1 . 1 . . . . 3 2 3 1 3 3 2 . . 3 3 2 1 1 1 . 3 3 Low Security (%) 52 | 100 89 100 99 100 . 100 100 12 39 9 44 9 13 . 100 100 8 . . . 71 94 100 32 . Level 1 19 | . 10 . . . . . . 14 57 18 55 26 62 76 . . 11 . 4 100 28 5 . 22 . Level 2 16 | . . . . . . . . 52 2 53 . 48 19 23 . . 25 95 95 . . . . 3 20 Level 3 12 | . . . . . . . . 19 . 18 . 15 4 . . . 55 4 . . . . . 41 79 Level 4 . | . . . . . . . . . . . . . . . . . . . . . . . . . . Level 5 . | . . . . . . . . . . . . . . . . . . . . . . . . . . High Security . | . . . . . . . . . . . . . . . . . . . . . . . . . . Max Security . | . . . . . . . . . . . . . . . . . . . . . . . . . . Peak Influence 1075 | 20 246 141 201 104 . 50 82 779 408 743 389 733 752 610 199 176 1064 731 580 362 342 222 60 928 1075 Initial 566 | . . 91 . 61 . . . 1 408 51 389 44 384 366 199 . 103 558 402 217 89 176 60 8 566 Average 278 | 3 68 65 67 20 . 10 13 522 234 527 231 444 334 383 42 35 644 598 504 305 116 88 10 455 818 Influence Increases 12879 | 20 634 50 829 228 . 50 242 928 38 732 56 729 1189 384 2 452 1011 825 340 270 914 338 88 1665 865 Destroy 0b10 Robot/C 6880 | . 420 40 580 140 . 40 140 520 20 420 40 340 480 180 . 180 440 460 160 80 500 120 40 1000 540 Destroy 0b10 Robot/NC 475 | 20 35 . 70 15 . . 25 . 5 35 . 10 45 . . 5 40 55 10 45 20 5 5 20 10 Destroy Leader 1084 | . 86 10 136 20 . 10 26 20 12 30 10 40 102 20 . 32 30 44 . . 150 12 10 194 90 Allied During Kill 854 | . . . . 14 . . . 19 . 4 . . 26 . . 217 222 235 76 33 8 . . . . Successful Hack 307 | . 31 . 7 . . . 31 14 . . 4 30 2 . . 10 26 5 8 . 33 . 12 76 18 Select Force Hacks 60 | . 60 . . . . . . . . . . . . . . . . . . . . . . . . Disable Machine 465 | . . . 15 . . . 15 . . . . 15 150 90 . . . . . 60 45 15 . 30 30 Anti-Garrison Action 950 | . . . . . . . . 250 . 150 . 100 150 . . . 150 . . . . 150 . . . Destroy Structure 1399 | . 2 . 21 39 . . 5 105 1 78 2 89 144 94 2 8 73 26 86 52 98 36 21 300 117 Lose Combat Pursuer 405 | . . . . . . . . . . 15 . 105 90 . . . 30 . . . 60 . . 45 60 Influence Decreases 12120 | 20 399 285 672 385 . 50 240 151 743 63 736 59 1173 563 572 304 95 1170 515 557 835 567 180 795 991 Entered New Map 4007 | . . 144 . 96 . . . 1 371 23 354 19 349 383 371 . 45 506 317 327 168 160 47 7 319 Time Decay 6337 | 20 399 141 522 201 . 50 240 . 362 . 362 . 574 170 181 184 . 434 198 230 597 397 125 588 362 Lost Part 810 | . . . . 32 . . . 90 10 20 20 10 200 10 . . 10 10 . . 20 10 8 50 310 Lost Ally 666 | . . . . 56 . . . 60 . 20 . 30 50 . 20 120 40 220 . . 50 . . . . Purge Threat 300 | . . . 150 . . . . . . . . . . . . . . . . . . . . 150 . Squads Dispatched 62 | . 5 . 2 . . . 2 . 1 . 1 . 10 1 . 2 . 2 . . 7 3 4 16 6 Investigation 11 | . 3 . . . . . . . . . . . 1 . . . . 2 . . . 1 1 2 1 Extermination 23 | . . . . . . . . . 1 . 1 . 3 . . 1 . . . . 5 . 2 7 3 Reinforcement 18 | . 2 . 2 . . . 2 . . . . . 3 1 . 1 . . . . 2 2 1 2 . Assault 6 | . . . . . . . . . . . . . 2 . . . . . . . . . . 2 2 Garrison 4 | . . . . . . . . . . . . . 1 . . . . . . . . . . 3 . Intercept . | . . . . . . . . . . . . . . . . . . . . . . . . . . Searches Triggered . | . . . . . . . . . . . . . . . . . . . . . . . . . . Construction Impeded 2 | . . . . . . . . . . . . . 2 . . . . . . . . . . . . Haulers Reinforced 2 | . . . . . . . . . . . . . . . . 1 . . . . . . . 1 . Active Scanning Responses . | . . . . . . . . . . . . . . . . . . . . . . . . . . Cargo Convoy Interrupts 1 | . . . . . . . . . . . . . 1 . . . . . . . . . . . . Alert ID Control Effect 7 | . . . . . . . . . . . . . 7 . . . . . . . . . . . . Stealth | -11 -10 -10 -9 -9 -9 -8 -8 -8 -7 -7 -7 -7 -6 -5 -5 -5 -5 -5 -5 -5 -4 -3 -2 -1 -1 --------- Run | Yrd Mat Min Mat Min Exi Min Mat Gar Fac Gar Fac Gar Fac Fac Was Fac Gar Ext Cet Arc Fac Res Res Acc Com Distress Signals 32 | . 3 . 6 . . . 3 . . . . 2 4 . . 2 . 1 2 . 2 4 . 2 1 Communications Jammed 118 | . . . . . . . . . . . . . . . . . . . . . 5 34 4 46 29 Distress Signals 113 | . . . . . . . . . . . . . . . . . . . . . . 34 4 46 29 Times Spotted 503 | . 35 5 47 29 . 3 12 23 7 18 4 17 47 9 1 11 20 25 10 18 31 20 4 70 37 Peak Tracking Total 11 | . 4 3 9 6 . 3 4 5 3 6 3 5 11 4 . 4 6 4 5 1 4 5 2 10 6 Tactical Retreats 21 | . . . . 3 . . . . . 1 . 4 5 . . . 1 . . . 2 . . 2 3 Traps | -11 -10 -10 -9 -9 -9 -8 -8 -8 -7 -7 -7 -7 -6 -5 -5 -5 -5 -5 -5 -5 -4 -3 -2 -1 -1 ------- Run | Yrd Mat Min Mat Min Exi Min Mat Gar Fac Gar Fac Gar Fac Fac Was Fac Gar Ext Cet Arc Fac Res Res Acc Com Traps Triggered 24 | . 1 . 1 1 . . . 3 1 1 1 7 2 1 . . . . . . 2 . . 2 1 Indirectly . | . . . . . . . . . . . . . . . . . . . . . . . . . . Trap Hack Attempts 31 | . . . . . . . 31 . . . . . . . . . . . . . . . . . . Triggered . | . . . . . . . . . . . . . . . . . . . . . . . . . . Disarmed 1 | . . . . . . . 1 . . . . . . . . . . . . . . . . . . Reprogrammed . | . . . . . . . . . . . . . . . . . . . . . . . . . . Reused . | . . . . . . . . . . . . . . . . . . . . . . . . . . Traps Extracted . | . . . . . . . . . . . . . . . . . . . . . . . . . . Installed . | . . . . . . . . . . . . . . . . . . . . . . . . . . Triggered . | . . . . . . . . . . . . . . . . . . . . . . . . . . Machines | -11 -10 -10 -9 -9 -9 -8 -8 -8 -7 -7 -7 -7 -6 -5 -5 -5 -5 -5 -5 -5 -4 -3 -2 -1 -1 ---------- Run | Yrd Mat Min Mat Min Exi Min Mat Gar Fac Gar Fac Gar Fac Fac Was Fac Gar Ext Cet Arc Fac Res Res Acc Com Machines Disabled 48 | . . . 1 . . . 1 4 . 2 . 4 11 6 . . 5 1 . 4 3 2 . 2 2 Max in Single Turn 5 | . . . 1 . . . 1 1 . 1 . 1 2 5 . . 1 . . 1 2 1 . 1 1 Garrison Access 5 | . . . . . . . . . . . . . 1 . . . . . . . . 1 1 2 . Garrison Relay 10 | . . . . . . . . 3 . 2 . 2 . . . . 3 . . . . . . . . Energy Cycler 1 | . . . . . . . . . . . . . . . . . . . . . . . . 1 . Machines Repaired . | . . . . . . . . . . . . . . . . . . . . . . . . . . Machines Dismantled . | . . . . . . . . . . . . . . . . . . . . . . . . . . Machines Sabotaged . | . . . . . . . . . . . . . . . . . . . . . . . . . . Overloaded Fab Kills . | . . . . . . . . . . . . . . . . . . . . . . . . . . Hacking | -11 -10 -10 -9 -9 -9 -8 -8 -8 -7 -7 -7 -7 -6 -5 -5 -5 -5 -5 -5 -5 -4 -3 -2 -1 -1 --------- Run | Yrd Mat Min Mat Min Exi Min Mat Gar Fac Gar Fac Gar Fac Fac Was Fac Gar Ext Cet Arc Fac Res Res Acc Com Machines Accessed 67 | . 8 . 9 . 2 . 4 3 1 1 2 2 3 . . 2 2 4 1 . 6 2 3 11 1 Terminals 40 | . 6 . 7 . . . 2 3 . 1 . 2 2 . . . 2 4 1 . 2 1 1 6 . Fabricators 2 | . . . . . . . . . . . . . . . . . . . . . 1 . . 1 . Repair Stations 9 | . . . . . . . 1 . . . 1 . . . . . . . . . 3 . 1 2 1 Recycling Units 2 | . 2 . . . . . . . . . . . . . . . . . . . . . . . . Scanalyzers 5 | . . . 2 . . . . . . . . . 1 . . 1 . . . . . 1 . . . Garrison Access 7 | . . . . . . . 1 . 1 . 1 . . . . 1 . . . . . . 1 2 . Total Hacks 187 | . 25 . 26 . 5 . 12 3 1 3 5 4 7 . . 3 4 8 2 . 19 12 18 27 3 Successful 105 | . 14 . 16 . 5 . 7 2 1 . 5 2 4 . . 2 2 3 1 . 11 8 10 10 2 Failed 80 | . 11 . 9 . . . 5 1 . 3 . 2 2 . . 1 2 5 1 . 8 4 8 17 1 Catastrophic 18 | . 1 . 1 . . . 1 1 . 1 . 1 2 . . . . 1 . . 1 1 2 5 . Database Lockouts 2 | . . . 1 . . . . . . . . . 1 . . . . . . . . . . . . Manual 77 | . 20 . 15 . 1 . 7 . . . . 2 2 . . . . 2 . . 6 3 6 13 . Terminals 108 | . 21 . 20 . . . 8 3 . 3 . 4 3 . . . 4 8 2 . 7 4 6 15 . Fabricators 5 | . . . . . . . . . . . . . . . . . . . . . 2 . . 3 . Repair Stations 38 | . . . . . . . 3 . . . 4 . . . . . . . . . 10 . 11 7 3 Recycling Units 4 | . 4 . . . . . . . . . . . . . . . . . . . . . . . . Scanalyzers 20 | . . . 6 . . . . . . . . . 4 . . 2 . . . . . 8 . . . Garrison Access 7 | . . . . . . . 1 . 1 . 1 . . . . 1 . . . . . . 1 2 . Terminal Hacks 28 | . 4 . 4 . 5 . . 2 . . . 1 . . . . 2 2 1 . 3 1 1 2 . Record 4 | . . . . . 4 . . . . . . . . . . . . . . . . . . . . Part Schematic 1 | . 1 . . . . . . . . . . . . . . . . . . . . . . . . Prototype ID Bank 3 | . 3 . . . . . . . . . . . . . . . . . . . . . . . . Open Door 4 | . . . . . . . . 1 . . . . . . . . . 2 1 . . . . . . Level Access Points 2 | . . . . . . . . . . . . . . . . . . . . . 1 . 1 . . Branch Access Points 3 | . . . . . . . . . . . . . . . . . . . . . 1 1 . 1 . Emergency Access Points 2 | . . . . . . . . 1 . . . . . . . . 1 . . . . . . . . Alert Level 1 | . . . 1 . . . . . . . . . . . . . . . . . . . . . . Unreport Threat 2 | . . . 1 . . . . . . . . . . . . . . . . . . . . 1 . Locate Traps 2 | . . . 1 . . . . . . . . . . . . . . . . . 1 . . . . Zone Layout 1 | . . . 1 . . . . . . . . . . . . . . . . . . . . . . Security Stations 2 | . . . . . . . . . . . . 1 . . . . 1 . . . . . . . . Proto ID Catalog 1 | . . . . . 1 . . . . . . . . . . . . . . . . . . . . Fabricator Hacks 1 | . . . . . . . . . . . . . . . . . . . . . 1 . . . . Build 1 | . . . . . . . . . . . . . . . . . . . . . 1 . . . . Repair Station Hacks 24 | . . . . . . . 1 . . . 4 . . . . . . . . . 6 . 8 3 2 Scan Component 14 | . . . . . . . 1 . . . 2 . . . . . . . . . 3 . 5 2 1 Repair 10 | . . . . . . . . . . . 2 . . . . . . . . . 3 . 3 1 1 Recycling Unit Hacks . | . . . . . . . . . . . . . . . . . . . . . . . . . . Scanalyzer 16 | . . . 5 . . . . . . . . . 3 . . 1 . . . . . 7 . . . Insert Component 2 | . . . 1 . . . . . . . . . . . . 1 . . . . . . . . . Analyze 1 | . . . 1 . . . . . . . . . . . . . . . . . . . . . . Retrieve Study 13 | . . . 3 . . . . . . . . . 3 . . . . . . . . 7 . . . Garrison Access Hacks 7 | . . . . . . . 1 . 1 . 1 . . . . 1 . . . . . . 1 2 . Unlock Access 4 | . . . . . . . 1 . 1 . 1 . . . . 1 . . . . . . . . . Seal Access 3 | . . . . . . . . . . . . . . . . . . . . . . . 1 2 . Unauthorized Hacks 29 | . 10 . 7 . . . 5 . . . . 1 1 . . . . 1 . . 1 . . 3 . Terminals 25 | . 8 . 7 . . . 5 . . . . 1 1 . . . . 1 . . . . . 2 . Botnet 12 | . 3 . 2 . . . 2 . . . . 1 1 . . . . 1 . . . . . 2 . Operators 1 | . . . . . . . 1 . . . . . . . . . . . . . . . . . . Skim 12 | . 5 . 5 . . . 2 . . . . . . . . . . . . . . . . . . Fabricators 2 | . . . . . . . . . . . . . . . . . . . . . 1 . . 1 . Liberate 2 | . . . . . . . . . . . . . . . . . . . . . 1 . . 1 . Repair Stations . | . . . . . . . . . . . . . . . . . . . . . . . . . . Recycling Units 2 | . 2 . . . . . . . . . . . . . . . . . . . . . . . . Tunnel 2 | . 2 . . . . . . . . . . . . . . . . . . . . . . . . Scanalyzers . | . . . . . . . . . . . . . . . . . . . . . . . . . . Garrison Access . | . . . . . . . . . . . . . . . . . . . . . . . . . . Data Cores Recovered . | . . . . . . . . . . . . . . . . . . . . . . . . . . Used . | . . . . . . . . . . . . . . . . . . . . . . . . . . Hacking Detections 55 | . 6 . 9 . . . 4 1 . 1 1 2 3 . . 2 2 4 1 . 6 1 2 9 1 Full Trace Events 5 | . . . . . . . . . . 1 . . . . . . . 1 . . . . 1 2 . Feedback Events 1 | . . . . . . . . . . . . . . . . . . . . . . . 1 . . Hackware Fried 1 | . . . . . . . . . . . . . . . . . . . . . . . 1 . . Feedback Blocked . | . . . . . . . . . . . . . . . . . . . . . . . . . . Robot Schematics Acquired . | . . . . . . . . . . . . . . . . . . . . . . . . . . Robots Built . | . . . . . . . . . . . . . . . . . . . . . . . . . . Authchips . | . . . . . . . . . . . . . . . . . . . . . . . . . . Time . | . . . . . . . . . . . . . . . . . . . . . . . . . . Total Robot Build Rating . | . . . . . . . . . . . . . . . . . . . . . . . . . . Part Schematics Acquired 2 | . 1 . 1 . . . . . . . . . . . . . . . . . . . . . . Parts Built 2 | . . . . . . . . . . . . . . . . . . . . . 2 . . . . Authchips . | . . . . . . . . . . . . . . . . . . . . . . . . . . Time 69 | . . . . . . . . . . . . . . . . . . . . . 69 . . . . Total Part Build Rating 18 | . . . . . . . . . . . . . . . . . . . . . 18 . . . . Part Studies Acquired 12 | . . . 3 . . . . . . . . . 3 . . . . . . . . 6 . . . Parts Repaired 9 | . . . . . . . . . . . 2 . . . . . . . . . 2 . 3 1 1 Time 504 | . . . . . . . . . . . 88 . . . . . . . . . 122 . 238 36 20 Parts Recycled . | . . . . . . . . . . . . . . . . . . . . . . . . . . Recycled Matter . | . . . . . . . . . . . . . . . . . . . . . . . . . . Retrieved Matter . | . . . . . . . . . . . . . . . . . . . . . . . . . . Retrieved Components . | . . . . . . . . . . . . . . . . . . . . . . . . . . Parts Scanalyzed 2 | . . . 1 . . . . . . . . . . . . 1 . . . . . . . . . Part Schematics Acquired 1 | . . . 1 . . . . . . . . . . . . . . . . . . . . . . Parts Damaged 1 | . . . . . . . . . . . . . . . . 1 . . . . . . . . . Bothacking | -11 -10 -10 -9 -9 -9 -8 -8 -8 -7 -7 -7 -7 -6 -5 -5 -5 -5 -5 -5 -5 -4 -3 -2 -1 -1 ------------ Run | Yrd Mat Min Mat Min Exi Min Mat Gar Fac Gar Fac Gar Fac Fac Was Fac Gar Ext Cet Arc Fac Res Res Acc Com Used RIF Installer 4 | . . . . . . . . 2 . 1 . 1 . . . . . . . . . . . . . Command Fork 1 | . . . . . . . . 1 . . . . . . . . . . . . . . . . . Alert ID Control 1 | . . . . . . . . . . . . 1 . . . . . . . . . . . . . Autooverride 1 | . . . . . . . . . . 1 . . . . . . . . . . . . . . . Robots Hacked 21 | . . . . . . . . . 1 . 3 2 5 1 . . . 1 . . 2 1 1 3 1 Non-combat 12 | . . . . . . . . . . . 2 . 3 . . . . . . . 2 1 1 3 . Combat 9 | . . . . . . . . . 1 . 1 2 2 1 . . . 1 . . . . . . 1 Autooverrided 3 | . . . . . . . . . . . . 1 . 1 . . . 1 . . . . . . . Robot Hacks Applied 24 | . . . . . . . . . 2 . 5 1 6 2 . . . . . . 2 1 1 3 1 parse_system 2 | . . . . . . . . . . . 2 . . . . . . . . . . . . . . find_chute 2 | . . . . . . . . . . . . . 2 . . . . . . . . . . . . map_earth 1 | . . . . . . . . . . . 1 . . . . . . . . . . . . . . block_reporting 1 | . . . . . . . . . . . . . . . . . . . . . . . . 1 . map_route 5 | . . . . . . . . . . . . . 1 . . . . . . . 1 1 . 2 . find_garrison 3 | . . . . . . . . . . . 1 . 1 1 . . . . . . . . . . . spike_heat 1 | . . . . . . . . . 1 . . . . . . . . . . . . . . . . amplify_resonance 1 | . . . . . . . . . . . . . . . . . . . . . . . . . 1 reboot_system 2 | . . . . . . . . . 1 . . . . 1 . . . . . . . . . . . overwrite_iff 2 | . . . . . . . . . . . 1 1 . . . . . . . . . . . . . formatsys_low 2 | . . . . . . . . . . . . . . . . . . . . . 1 . 1 . . formatsys_high 2 | . . . . . . . . . . . . . 2 . . . . . . . . . . . . Relay Couplers Released 46 | . . . . . . . . 13 . 10 . 8 2 . . . 12 . . . . 1 . . . Machine Destruction 46 | . . . . . . . . 13 . 10 . 8 2 . . . 12 . . . . 1 . . . Attached 16 | . . . . . . . . 2 . 3 . 3 3 . . . 2 . . . . . 1 . 2 Fabnet Peak Effective % . | . . . . . . . . . . . . . . . . . . . . . . . . . . Robots Rewired 21 | . . . . . . . . 3 . 3 . 3 . . . . 2 10 . . . . . . . Allies Hacked 3 | . . . . . . . . . . . . . . . . . 1 1 . . 1 . . . . Hacks Repelled . | . . . . . . . . . . . . . . . . . . . . . . . . . . Allies | -11 -10 -10 -9 -9 -9 -8 -8 -8 -7 -7 -7 -7 -6 -5 -5 -5 -5 -5 -5 -5 -4 -3 -2 -1 -1 -------- Run | Yrd Mat Min Mat Min Exi Min Mat Gar Fac Gar Fac Gar Fac Fac Was Fac Gar Ext Cet Arc Fac Res Res Acc Com Total Allies 56 | . . . . 3 . . . 3 . 3 1 5 2 1 20 . 2 14 . . 1 . 1 . . Largest Group 20 | . . . . 3 . . . 3 . 3 1 3 3 1 20 19 7 9 3 3 2 . 1 . . Highest-Rated Group 777 | . . . . 40 . . . 87 . 48 16 81 166 49 777 752 342 647 449 449 290 . 45 . . Highest-Rated Ally 159 | . . . . 16 . . . 31 . 16 16 32 110 49 46 46 148 159 159 159 148 . 45 . . Total Orders 20 | . . . . . . . 3 7 1 4 . 2 1 . . . 2 . . . . . . . . STAY 1 | . . . . . . . . . . . . . 1 . . . . . . . . . . . . ROAM 1 | . . . . . . . . . . . . . . . . . 1 . . . . . . . . FOLLOW 1 | . . . . . . . . . . . . . . . . . 1 . . . . . . . . EXPLORE 15 | . . . . . . . 3 6 1 3 . 2 . . . . . . . . . . . . . RETURN 2 | . . . . . . . . 1 . 1 . . . . . . . . . . . . . . . Ally Attacks 388 | . . . . 8 . . . 17 . 2 . 3 28 . 4 79 70 108 44 10 15 . . . . Total Damage 10499 | . . . . 76 . . . 360 . . . 159 1675 . 79 1480 2086 2827 1186 254 317 . . . . Kills 78 | . . . . 1 . . . 1 . . . . 11 . 1 11 17 24 8 2 2 . . . . Allies Corrupted 1 | . . . . . . . . . . . . . . . . . . 1 . . . . . . . Allies Melted 1 | . . . . . . . . . . . . . . . . . 1 . . . . . . . . Intel | -11 -10 -10 -9 -9 -9 -8 -8 -8 -7 -7 -7 -7 -6 -5 -5 -5 -5 -5 -5 -5 -4 -3 -2 -1 -1 ------- Run | Yrd Mat Min Mat Min Exi Min Mat Gar Fac Gar Fac Gar Fac Fac Was Fac Gar Ext Cet Arc Fac Res Res Acc Com Active Infowar (turns) 11314 | 32 1943 313 2471 494 . . . . . 2 . . . . . . . . . . 68 1198 912 3107 774 Structural 66 | . . . . 66 . . . . . . . . . . . . . . . . . . . . . Traps 1 | . . . . . . . . . . . . . . . . . . . . . 1 . . . . Seismic 5187 | 32 1943 313 2471 428 . . . . . . . . . . . . . . . . . . . . . T.N.C. 2 | . . . . . . . . . . 2 . . . . . . . . . . . . . . . Jamming 6058 | . . . . . . . . . . . . . . . . . . . . . 67 1198 912 3107 774 Robot Analysis Total . | . . . . . . . . . . . . . . . . . . . . . . . . . . Derelict Logs Recovered . | . . . . . . . . . . . . . . . . . . . . . . . . . . Drone Launches 13 | . . . . . . . 3 4 1 3 . 2 . . . . . . . . . . . . . Drone Recoveries 12 | . . . . . . . 3 4 1 3 . 1 . . . . . . . . . . . . . Exploration | -11 -10 -10 -9 -9 -9 -8 -8 -8 -7 -7 -7 -7 -6 -5 -5 -5 -5 -5 -5 -5 -4 -3 -2 -1 -1 ------------- Run | Yrd Mat Min Mat Min Exi Min Mat Gar Fac Gar Fac Gar Fac Fac Was Fac Gar Ext Cet Arc Fac Res Res Acc Com Turns Passed 28056 | 118 1943 313 2471 896 471 247 1070 1495 829 1194 830 1186 1758 347 924 651 1188 1076 416 491 2099 1201 912 3107 823 Spaces Moved 12571 | 53 872 178 1059 513 300 150 495 717 247 493 350 592 844 175 410 302 518 541 173 175 964 656 312 1098 384 Core 80 | 2 . . . . . . . . . . . . . . . . . . . . . . . . 78 Treads 10922 | 51 872 178 1059 513 300 150 495 717 247 493 201 84 2 109 410 302 518 541 173 175 964 656 312 1098 302 Legs 435 | . . . . . . . . . . . . . 369 66 . . . . . . . . . . . Wheels 1130 | . . . . . . . . . . . 149 508 473 . . . . . . . . . . . . Hover 4 | . . . . . . . . . . . . . . . . . . . . . . . . . 4 Flight . | . . . . . . . . . . . . . . . . . . . . . . . . . . Fastest Speed 40 | 50 160 160 145 145 155 155 152 152 160 160 130 130 90 100 155 155 152 160 160 160 160 160 166 158 40 Average Speed 153 | 155 160 160 148 149 155 155 165 156 160 170 147 134 112 138 158 156 158 160 160 160 160 164 166 165 137 Slowest Speed 320 | 160 160 160 160 155 155 155 200 160 160 200 160 240 240 320 160 232 250 240 160 160 160 166 170 225 161 Overloaded Moves . | . . . . . . . . . . . . . . . . . . . . . . . . . . Propulsion Burnouts . | . . . . . . . . . . . . . . . . . . . . . . . . . . Robots Hopped . | . . . . . . . . . . . . . . . . . . . . . . . . . . Potential Cave-ins 3 | . . . . . . . . . . . . . . . . . . . . . 1 . . 2 . Cave-ins Triggered . | . . . . . . . . . . . . . . . . . . . . . . . . . . Exploration Rate (%) 48 | 4 98 48 70 83 60 37 66 90 12 73 9 85 22 4 96 10 52 69 67 96 24 21 9 30 20 Regions Visited 25 Branch Regions 8 Pre-discovered Areas 8 | . 3 . 3 1 1 . . . . . . . . . . . . . . . . . . . . Known Exits Taken 9 | . 1 . . . . 1 1 . 1 . 1 . . . . 1 . . . . 1 . 1 1 . Unknown Exits Taken 10 | 1 . 1 1 1 1 . . . . . . . 1 . . . . 1 1 1 . 1 . . . Scrap Searched 1 | . . 1 . . . . . . . . . . . . . . . . . . . . . . . Spaces Dug 246 | . . . . 23 . . 3 18 1 33 . 26 79 12 . 3 . . . . 14 1 6 22 5 Terrain Destroyed 752 | . . . 20 86 . . 3 47 1 44 1 88 149 59 1 5 . 5 4 6 37 22 8 116 50 Melee 16 | . . . . . . . 3 . 1 . . 11 1 . . . . . . . . . . . . Projectile 197 | . . . . . . . . . . 1 1 . 39 6 1 5 . 5 4 6 37 8 8 63 13 AOE 539 | . . . 20 86 . . . 47 . 43 . 77 109 53 . . . . . . . 14 . 53 37 Terrain Rammed . | . . . . . . . . . . . . . . . . . . . . . . . . . . Walls Destroyed . | . . . . . . . . . . . . . . . . . . . . . . . . . . Machines Disabled . | . . . . . . . . . . . . . . . . . . . . . . . . . . Actions | -11 -10 -10 -9 -9 -9 -8 -8 -8 -7 -7 -7 -7 -6 -5 -5 -5 -5 -5 -5 -5 -4 -3 -2 -1 -1 --------- Run | Yrd Mat Min Mat Min Exi Min Mat Gar Fac Gar Fac Gar Fac Fac Was Fac Gar Ext Cet Arc Fac Res Res Acc Com Total 19828 | 75 1286 193 1800 577 307 156 688 935 652 711 649 866 1479 261 680 479 744 687 286 327 1469 781 707 2381 652 Wait 4760 | 9 303 . 548 5 . . 78 60 368 50 268 119 416 41 215 147 93 79 66 111 303 47 342 982 110 Move 12549 | 52 871 177 1058 512 299 149 495 715 247 492 350 591 843 175 409 301 517 540 172 174 963 655 311 1097 384 Hop . | . . . . . . . . . . . . . . . . . . . . . . . . . . Pick Up 240 | 2 21 2 34 7 1 1 13 14 4 14 3 12 21 6 6 6 10 3 6 3 13 8 11 15 4 Fast Attach 154 | 7 1 . 2 3 2 . 1 6 2 7 5 2 25 6 13 2 6 3 8 2 13 13 4 14 7 Attach 94 | . . . 2 7 . 1 2 9 3 3 1 1 15 1 3 4 1 1 1 . 6 5 3 7 18 Detach 34 | . . . . . . . . . 1 4 . . 7 1 2 . 1 1 1 1 2 4 . 5 4 Swap 239 | . 5 2 20 1 1 1 18 24 6 30 5 24 24 7 2 4 11 7 6 2 16 4 4 11 4 Drop 315 | . 13 4 38 2 4 . 18 11 5 28 5 14 24 11 22 9 19 5 13 4 16 17 8 19 6 Fire 1279 | 5 71 8 86 36 . 4 29 90 13 79 7 44 85 13 4 5 85 47 13 30 129 27 24 230 115 Melee 55 | . . . . . . . 3 6 3 4 5 22 12 . . . . . . . . . . . . Ram 2 | . . . . . . . . . . . . . 2 . . . . . . . . . . . . Kick 5 | . . . . . . . . . . . . . 5 . . . . . . . . . . . . Crush 30 | . 1 . 12 4 . . . . . . . . . . . 1 1 1 . . 8 1 . 1 . Escape Stasis 37 | . . . . . . . . . . . . 37 . . . . . . . . . . . . . Rewire 4 | . . . . . . . . . . . . . . . 4 . . . . . . . . . . Trap 31 | . . . . . . . 31 . . . . . . . . . . . . . . . . . . Miscellaneous . | . . . . . . . . . . . . . . . . . . . . . . . . . . Route ------- -11/Scrapyard -10/Materials (discovered 5 exits: *Mat x3 / *Min / [*Sub]) -10/Mines -9/Materials (discovered 4 exits: *Mat x3 / [*Min]) -9/Mines (discovered 3 exits: *Mat / *Exi / [*Zio]) -9/Exiles -8/Mines -8/Materials (discovered 3 exits: *Fac x2 / Gar) -8/Garrison (discovered 3 exits: *Fac x3) -7/Factory (discovered 2 exits: *Fac / Gar) -7/Garrison (discovered 4 exits: *Fac x3 / *Fac) -7/Factory (discovered 2 exits: *Fac / Gar) -7/Garrison (discovered 3 exits: *Fac x3) -6/Factory -5/Factory -5/Waste -5/Factory -5/Garrison -5/Extension (discovered 2 exits: *Fac / *Cet) -5/Cetus (discovered 2 exits: *Fac / [*Arc]) -5/Archives (discovered 3 exits: *Fac / [*Hub x2]) -4/Factory (discovered 6 exits: *Res x4 / Upp x2) -3/Research (discovered 4 exits: *Res / Arm / Qua x2) -2/Research (discovered 3 exits: *Acc x3) -1/Access -1/Command History --------- Turn | Location | Event 42 | -11/Scrapyard | Discovered new exit (range 16) 119 | -11/Scrapyard | Entered Materials 310 | -10/Materials | Build established: Mutant 1061 | -10/Materials | Discovered new exit (range 11) 1397 | -10/Materials | Discovered new exit (range 13) 1498 | -10/Materials | Learned location of 2 exits from Subcaves 1532 | -10/Materials | Discovered new exit (range 7) 1650 | -10/Materials | Learned location of Storage (-7) 1711 | -10/Materials | Learned Storage terminal intel 1728 | -10/Materials | Discovered new exit (range 12) 1763 | -10/Materials | Identified exit to Mines 1859 | -10/Materials | Learned Recycling recycling unit intel 1923 | -10/Materials | Learned Materials stockpile data 1997 | -10/Materials | Learned Storage emergency access door positions 2062 | -10/Materials | Entered Mines 2075 | -10/Mines | Core integrity fell below 50% 2201 | -10/Mines | Found a hidden stash of uninstalled traps 2330 | -10/Mines | Discovered new exit (range 9) 2375 | -10/Mines | Entered Materials 2375 | -9/Materials | Evolved 2 slots: Propulsion x1, Utility x1 2748 | -9/Materials | Build established: Scavenger-Mutant 3041 | -9/Materials | Destroyed 7 combat bots 3048 | -9/Materials | Discovered new exit (range 7) 3417 | -9/Materials | Build established: Mutant 4208 | -9/Materials | Discovered new exit (range 12) 4282 | -9/Materials | Central database locked down 4412 | -9/Materials | Learned location of 1 exit from Recycling 4584 | -9/Materials | Learned 2 Storage zone layouts 4623 | -9/Materials | Identified exit to Materials 4653 | -9/Materials | Learned 2 Storage zone layouts 4738 | -9/Materials | Loaded intel: 17 trap records 4788 | -9/Materials | Learned Storage terminal intel 4846 | -9/Materials | Entered Mines 4847 | -9/Mines | A Derelict revealed a hidden shortcut to a safe place 4871 | -9/Mines | Met a Derelict bent on vengeance 4933 | -9/Mines | Assisted by bots powering up and referring to "LRC-V3" 5099 | -9/Mines | Discovered exit to Materials (range 12) 5219 | -9/Mines | Assembled infested the area 5224 | -9/Mines | Assisted by a Guerilla fighting off Assembled 5227 | -9/Mines | Found a damaged Exp. Sensor Array with a note attached 5230 | -9/Mines | Found Prototype Device 5230 | -9/Mines | Identified Exp. Sensor Array 5274 | -9/Mines | Core integrity fell below 50% 5283 | -9/Mines | Lost 3 allies 5305 | -9/Mines | Lost 8 parts (1p3n3u1w) 5340 | -9/Mines | Destroyed 13 combat bots 5382 | -9/Mines | Joined a pair of Derelicts in attacking an 0b10 outpost 5648 | -9/Mines | Build established: Scavenger-Mutant 5735 | -9/Mines | Deemed a non-threat by the Exiles lab entrance 5735 | -9/Mines | Discovered new exit (range 5) 5742 | -9/Mines | Entered Exiles 5782 | -9/Exiles | Met 8R-AWN 5805 | -9/Exiles | Met EX-HEX 5886 | -9/Exiles | Met EX-DEC 5911 | -9/Exiles | Learned location of Zion (-7) 5939 | -9/Exiles | Met EX-BIN 5960 | -9/Exiles | Aligned with FarCom system 5962 | -9/Exiles | Given EX-Vault access code 5998 | -9/Exiles | Opened EX-Vault 6007 | -9/Exiles | Found Supersonic Drone Bay 6043 | -9/Exiles | Warned to stay clear of 0b10 Research branches 6193 | -9/Exiles | Discovered new exit (range 14) 6213 | -9/Exiles | Left Exiles lab with Supersonic Drone Bay 6213 | -9/Exiles | Entered Mines 6255 | -8/Mines | Discovered exit to Materials (range 7) 6460 | -8/Mines | Entered Materials 6460 | -8/Materials | Evolved 2 slots: Propulsion x1, Utility x1 6493 | -8/Materials | Discovered new exit (range 50) 7455 | -8/Materials | Discovered new exit (range 16) 7530 | -8/Materials | Identified exit to Garrison 7530 | -8/Materials | Entered Garrison 7543 | -8/Garrison | Triggered checkpoint 7586 | -8/Garrison | Triggered checkpoint 7635 | -8/Garrison | Garrison Relay disabled 7754 | -8/Garrison | Build established: Mutant 7764 | -8/Garrison | Destroyed 8 combat bots 7768 | -8/Garrison | Triggered checkpoint 7806 | -8/Garrison | Discovered new exit (range 41) 7836 | -8/Garrison | Discovered new exit (range 32) 7936 | -8/Garrison | Triggered checkpoint 7981 | -8/Garrison | Installed Relay Interface Framework 8068 | -8/Garrison | Garrison Relay disabled 8265 | -8/Garrison | Discovered new exit (range 40) 8292 | -8/Garrison | Triggered checkpoint 8341 | -8/Garrison | Build established: Scavenger-Mutant 8408 | -8/Garrison | Lost 7 parts (1p4n1u1w) 8503 | -8/Garrison | Garrison Relay disabled 8915 | -8/Garrison | Expanded RIF knowledge: Command Fork 9025 | -8/Garrison | Entered Factory 9025 | -7/Factory | Evolved 2 slots: Utility x2 9043 | -7/Factory | Discovered new exit (range 41) 9472 | -7/Factory | Allied Derelicts emerged from ambush trap array 9541 | -7/Factory | Identified exit to Garrison 9854 | -7/Factory | Entered Garrison 9875 | -7/Garrison | Discovered new exit (range 21) 9965 | -7/Garrison | Garrison Relay disabled 10174 | -7/Garrison | Triggered checkpoint 10176 | -7/Garrison | Triggered checkpoint 10242 | -7/Garrison | Destroyed 10 combat bots 10278 | -7/Garrison | Build established: Bothacker-Mutant 10372 | -7/Garrison | Expanded RIF knowledge: Autooverride 10408 | -7/Garrison | Discovered new exit (range 12) 10427 | -7/Garrison | Discovered new exit (range 46) 10433 | -7/Garrison | Discovered new exit (range 67) 10600 | -7/Garrison | Triggered checkpoint 10823 | -7/Garrison | Garrison Relay disabled 11048 | -7/Garrison | Entered Factory 11154 | -7/Factory | Discovered new exit (range 16) 11594 | -7/Factory | Repaired Arm. Huge Wheel 11639 | -7/Factory | Repaired Hvy. Missile Launcher 11720 | -7/Factory | Identified exit to Garrison 11878 | -7/Factory | Entered Garrison 11884 | -7/Garrison | Triggered checkpoint 11888 | -7/Garrison | Discovered new exit (range 53) 11895 | -7/Garrison | Discovered new exit (range 81) 11950 | -7/Garrison | Learned Factory security intel 11993 | -7/Garrison | Garrison Relay disabled 12070 | -7/Garrison | Triggered checkpoint 12182 | -7/Garrison | Triggered checkpoint 12267 | -7/Garrison | Expanded RIF knowledge: Alert ID Control 12288 | -7/Garrison | Triggered checkpoint 12302 | -7/Garrison | Garrison Relay disabled 12396 | -7/Garrison | Discovered new exit (range 15) 12619 | -7/Garrison | Triggered checkpoint 13064 | -7/Garrison | Entered Factory 13064 | -6/Factory | Accompanied by 3 allies 13064 | -6/Factory | Evolved 2 slots: Utility x2 13310 | -6/Factory | Central database locked down 14015 | -6/Factory | Cargo convoy interrupted 14036 | -6/Factory | Garrison activated, responded to threat 14056 | -6/Factory | Lost 3 allies 14144 | -6/Factory | Lost 13 parts (2p3n6u2w) 14160 | -6/Factory | Found Prototype Processor 14160 | -6/Factory | Identified Exp. Melee Analysis Suite 14171 | -6/Factory | Core integrity fell below 50% 14187 | -6/Factory | Found Exp. Melee Analysis Suite 14291 | -6/Factory | Discovered new exit (range 86) 14653 | -6/Factory | Lost 3 parts (2u1w) 14663 | -6/Factory | Core integrity fell below 20% 14766 | -6/Factory | Found Prototype Device 14822 | -6/Factory | Entered another Factory area 14822 | -5/Factory | Evolved 2 slots: Propulsion x1, Utility x1 15169 | -5/Factory | Sucked down chute 15169 | -5/Factory | Entered Waste 15170 | -5/Waste | Joined by Warlord forces that had cleared the area 15362 | -5/Waste | Found Damper Plating 15439 | -5/Waste | A Compactor rumbled back to life 15439 | -5/Waste | Allies destroyed C-40 Crusher 15530 | -5/Waste | Found Damper Plating 15581 | -5/Waste | Discovered new exit (range 12) 15627 | -5/Waste | Build established: Scavenger-Mutant 15887 | -5/Waste | Found Broken Adv. Powered Armor 15975 | -5/Waste | Build established: Mutant 16093 | -5/Waste | Entered Factory 16093 | -5/Factory | Accompanied by 19 allies 16610 | -5/Factory | Identified exit to Garrison 16637 | -5/Factory | Lost 5 allies 16744 | -5/Factory | Entered Garrison 16744 | -5/Garrison | Accompanied by 7 allies 16824 | -5/Garrison | Triggered checkpoint 16868 | -5/Garrison | Garrison Relay disabled 16878 | -5/Garrison | Triggered checkpoint 17234 | -5/Garrison | Triggered checkpoint 17234 | -5/Garrison | Triggered checkpoint 17286 | -5/Garrison | Garrison Relay disabled 17298 | -5/Garrison | Lost 4 allies 17374 | -5/Garrison | Triggered checkpoint 17414 | -5/Garrison | Learned Extension security intel 17433 | -5/Garrison | Garrison Relay disabled 17484 | -5/Garrison | Discovered new exit (range 8) 17519 | -5/Garrison | Rewired B-90 Cyclops 17525 | -5/Garrison | Rewired B-90 Cyclops 17543 | -5/Garrison | Found Hvy. Reflective Plating 17745 | -5/Garrison | Build established: Bothacker-Mutant 17803 | -5/Garrison | Spotted B-75 Beast 17814 | -5/Garrison | Allies destroyed B-75 Beast 17876 | -5/Garrison | Found Relay Coupler [Proto] 17881 | -5/Garrison | Found Relay Coupler [Proto] 17932 | -5/Garrison | Entered Extension 17932 | -5/Extension | Accompanied by 3 allies 18053 | -5/Extension | Rescued a captive Derelict 18055 | -5/Extension | Rescued a captive Derelict 18188 | -5/Extension | Lost 3 allies 18235 | -5/Extension | Rescued A7 18360 | -5/Extension | Lost 4 allies 18457 | -5/Extension | Lost 5 allies 18732 | -5/Extension | Spotted B-75 Beast 18745 | -5/Extension | Allies destroyed B-75 Beast 18759 | -5/Extension | Spotted B-75 Beast 18786 | -5/Extension | Allies destroyed B-75 Beast 18949 | -5/Extension | Discovered new exit (range 15) 18951 | -5/Extension | Discovered new exit (range 15) 19008 | -5/Extension | Entered Cetus 19008 | -5/Cetus | Accompanied by 3 allies (A7) 19013 | -5/Cetus | Acquired a Cetus Manufacturing Module code from A7 19035 | -5/Cetus | Spotted Cetus Guard 19035 | -5/Cetus | Spotted Cetus Guard 19036 | -5/Cetus | Spotted Cetus Guard 19037 | -5/Cetus | Spotted Cetus Guard 19048 | -5/Cetus | Allies destroyed Cetus Guard 19052 | -5/Cetus | Allies destroyed Cetus Guard 19060 | -5/Cetus | Allies destroyed Cetus Guard 19065 | -5/Cetus | Destroyed Cetus Guard 19152 | -5/Cetus | Escorted A7 to Cetus Mainframe 19182 | -5/Cetus | Discovered new exit (range 16) 19232 | -5/Cetus | Spotted Cetus Guard 19232 | -5/Cetus | Spotted Cetus Guard 19232 | -5/Cetus | Spotted Cetus Guard 19233 | -5/Cetus | Spotted Cetus Guard 19236 | -5/Cetus | Allies destroyed Cetus Guard 19236 | -5/Cetus | Destroyed Cetus Guard 19255 | -5/Cetus | Allies destroyed Cetus Guard 19261 | -5/Cetus | Allies destroyed Cetus Guard 19276 | -5/Cetus | Discovered new exit (range 15) 19286 | -5/Cetus | System corruption reached 10% 19288 | -5/Cetus | Met Revision 17 19315 | -5/Cetus | System corruption reached 30% 19424 | -5/Cetus | Entered Archives 19424 | -5/Archives | Accompanied by 3 allies (A7) 19429 | -5/Archives | Received a hacking code to weaken MAIN.C 19653 | -5/Archives | Discovered new exit (range 15) 19738 | -5/Archives | Discovered new exit (range 13) 19808 | -5/Archives | Discovered new exit (range 15) 19915 | -5/Archives | Entered Factory 19915 | -4/Factory | Accompanied by 2 allies 19915 | -4/Factory | Evolved 2 slots: Propulsion x1, Utility x1 20016 | -4/Factory | Repaired Centrium Medium Armor Plating? 20188 | -4/Factory | Repaired Centrium Medium Armor Plating 20217 | -4/Factory | Build established: Hacker-Mutant 20442 | -4/Factory | Identified exit to Upper Caves 20673 | -4/Factory | Found Quantum Capacitor 20718 | -4/Factory | Build established: Scavenger-Mutant 20727 | -4/Factory | Fabricated Enh. Quantum Rifle? 20839 | -4/Factory | System corruption reached 10% 21313 | -4/Factory | Identified exit to Research 22014 | -4/Factory | Entered Research 22014 | -3/Research | Evolved 2 slots: Power x1, Utility x1 22214 | -3/Research | Revision forces began assault on 0b10 22257 | -3/Research | Met up with Revision 17++ 22381 | -3/Research | Identified exit to Armory 22381 | -3/Research | Identified exit to Quarantine 22647 | -3/Research | Found Fusion Bomb Launcher 22714 | -3/Research | Research terminal network offline 23032 | -3/Research | Discovered new exit (range 14) 23215 | -3/Research | Entered another Research area 23215 | -2/Research | Evolved 2 slots: Power x1, Utility x1 23485 | -2/Research | Identified exit to Access 23485 | -2/Research | Imp. System Shield fried by hacking feedback 23640 | -2/Research | Repaired Centrium Heavy Treads 23704 | -2/Research | Repaired Quantum Capacitor 23794 | -2/Research | Repaired Arm. Heavy Treads+ 24127 | -2/Research | Entered Access 24127 | -1/Access | Evolved 2 slots: Utility x2 24190 | -1/Access | Found Gamma Bomb Array 25141 | -1/Access | Found Prototype Protection 25141 | -1/Access | Identified Centrium Heavy Armor Plating 25146 | -1/Access | Found Centrium Heavy Armor Plating 25206 | -1/Access | Energy Cycler disabled 25898 | -1/Access | Destroyed 13 combat bots 26006 | -1/Access | Identified exit to Command 26006 | -1/Access | Watched by a mysterious "MATRIX" hacker. 26377 | -1/Access | First assault squad dispatched 26411 | -1/Access | Repaired Centrium Heavy Armor Plating 26456 | -1/Access | Destroyed 7 combat bots 26560 | -1/Access | Garrison activated, responded to threat 27234 | -1/Access | Entered Command 27271 | -1/Command | Repaired Quantum Capacitor 27484 | -1/Command | First assault squad dispatched 27767 | -1/Command | Lost 4 parts (1p3u) 27952 | -1/Command | Spotted M Guard 27952 | -1/Command | Spotted M Guard 27952 | -1/Command | Spotted Combat Programmer 27956 | -1/Command | System corruption reached 10% 27978 | -1/Command | Spotted Combat Programmer 27988 | -1/Command | System corruption reached 30% 27997 | -1/Command | Destroyed Combat Programmer 28019 | -1/Command | Core integrity fell below 50% 28025 | -1/Command | Core integrity fell below 20% 28057 | -1/Command | Destroyed by Combat Programmer with EMDS Last Messages --------------- 28021_ Knocked back. 28021_ Adv. Heat Sink destroyed. 28022_ Penetrated by EMDS Slug. 28023_ The unstable cave ceiling collapses. 28024_ Imp. System Shield destroyed. 28024_ Knocked back. 28024_ Door Terminal disabled. 28026_ The unstable cave ceiling collapses. 28028_ Imp. Hacking Suite destroyed. 28029_ The unstable cave ceiling collapses. 28029_ ALERT: Potential suspicious activity detected, Programmers report to Command Zone 4N. 28030_ The unstable cave ceiling collapses. 28038_ System corrupted: Heat flow error (+185). 28047_ Combat Programmer resets M-36 Artificer, system corruption cleaned. 28054_ System corrupted: Energy discharge (-33). 28055_ Acquired Linear Gravjet. 28057_ Penetrated by EMDS Slug. Map ----- +----------------------------------------------------+ | ?????????????????????????????????????????????????? | | ?????????????????????????????????????????????????? | | ?????????????????????????????????????????????????? | | ?????????????????????????????????????????????????? | | ?????????????????????????????????????????????????? | | ?????????????????????????????????????????????????? | | ?????????????????????????????????????????????????? | | ?????????????????????????????????????????????????? | | ?????????????????????????????????????????????????? | | ?????????????????????????????????????????????????? | | ?????????????????????????????????????????????????? | | ?????????????????????????????????????????????????? | | ?????????????????????????????????????????????????? | | ?????????????????????????????????????????????????? | | ?????????????????????????????????????????????????? | | ?????????????????????????????????????????????????? | | ?????????????????????????????????????????????????? | | ?????????????????????????????????????????????????? | | ?????????????????????????????????????????????????? | | ?????????????????????????????????????????????????? | | ?????????????????????????????????????????????????? | | ?????????????????????????????????????????????????? | | ?????????????????????????????????????????????????? | | ?????????????????????????????????????????????????? | | ????????????????????###+###############??????????? | | ????????????????????# @ #??????????? | | ????????????????????# #??????????? | | ????????????????????# #??????????? | | ????????????????????# p #??????????? | | ????????????????????# #?#????????? | | ????????????????????# # #????????? | | ? ????????????????# + #????????? | | # ????????????????###############+#+# #????????? | | # #????????????????????########## #????????? | | # #????????????????????# # #????????? | | # #????????????????????# # #????????? | | # #????????????????????# # #????????? | | # #????????????????????# # #????????+ | | # ###??????????????????# # #???????# | | # # ######?????????????# "" + #???????# | | # # ####??????????#""" # #???????# | | # # ##?????????#"T + #???????+ | | # #?????????#""" # #???????# | | ### ##?????????# "" # #???????# | | # ##?#####??# # #???????# | | # ### #??# # #???????# | | # # ## ############# ######### | | + | | + | | ]! + | +----------------------------------------------------+ Best States ------------- Heat Dissipation 159 Energy Generation 83 Energy Capacity 925 Matter Stores 300 Matter Capacity 300 Sight Range 16 Terrain Scan Density 10 Jamming Range 14 Power Amplification 30 Armor Coverage 2400 Resistance: TH 25 Resistance: EM 90 Point Defense Rating 240 Phase Shifting 15 Evasion (%) 67 Melee Accuracy 24 Target Analysis 8 Recoil Reduction 6 Offensive Hacking 24 Defensive Hacking 24 Relay Coupler Types 3 Relay Coupler Value 91 Item Schematics ----------------- Hcp. Storage Unit | -10/Materials | Hacked Structural Scanner | -9/Materials | Scanalyzed Robot Schematics ------------------ None Fabricated ------------ Enh. Quantum Rifle | x2 | -4/Factory | Preloaded Repaired ---------- Arm. Huge Wheel | 66% | -7/Factory Hvy. Missile Launcher | 35% | -7/Factory Centrium Medium Armor Plating | 61% | -4/Factory Centrium Medium Armor Plating | 57% | -4/Factory Centrium Heavy Treads | 19% | -2/Research Quantum Capacitor | 47% | -2/Research Arm. Heavy Treads | 60% | -2/Research Centrium Heavy Armor Plating | 16% | -1/Access Quantum Capacitor | 32% | -1/Command Studied --------- Lgt. Treads | -9/Materials | Hacked Datajack | -9/Materials | Hacked Grenade Launcher | -9/Materials | Hacked Hvy. Plasma Cannon | -6/Factory | Hacked Coil Gun | -6/Factory | Hacked Arm. Huge Wheel | -6/Factory | Hacked Nova Cannon | -3/Research | Hacked Proton Cannon | -3/Research | Hacked Adv. Remote Datajack | -3/Research | Hacked Rnf. Antimatter Reactor | -3/Research | Hacked Arm. Heavy Treads | -3/Research | Hacked Imp. Heavy Siege Treads | -3/Research | Hacked Alien Tech Used ----------------- None Achievements -------------- Powerful Protocols Challenges ------------ None Game ------ Seed FlightVoltaicDatajack Manual? 0 Play Time 03:59:11 Cumulative 349.7 hours Start 2026.02.08 @ 16:00:31 End 2026.02.08 @ 20:13:35 Sessions 1 Manual Loads 0 Difficulty Rogue Special Mode None Game No. 224 Rogue 224 Adventurer 0 Explorer 0 Win Type - Total 13 Types 9/1/1/1/0/0/0/1/0/0 Lore% 93 Gallery% 79 Achievement% 68 Wizard Run 0 Options --------- Layout 1 ASCII 0 Keyboard 0 Movement Mouse Keybinds 0 Fullscreen 2 Font 32/SmallcapsGlow Map View 50x35 Zoom Use 0% Tactical HUD 1 Map Filters NONE Filters NONE Steam 1 RUN: 6ca92998-1abe-4986-839b-939ad26b083f